Cogmind - Beta 13 @@@ ROGUE MODE // 2024.03.10 @ 00:27:16 Player: Ferns Result: Destroyed by G-47 Trooper with Particle Gun Performance ------------- Evolutions (2) 1000 Regions Visited (4) 800 Robots Destroyed (44) 220 Value Destroyed (935) 935 Prototype IDs (3) 60 Alien Tech Used (0) 0 Bonus (75) 75 TOTAL SCORE: 3090 Bonus ------- Follower Combat Kills 89 Friendly Fire -14 Cogmind --------- Core Integrity 0/550 Matter 277/300 Energy 140/140 System Corruption 0% Temperature Cool (9) Movement Flying (114) Ox1 Location -8/Materials Parts ------- > --- POWER (1) -------- Light Deuterium Engine > --- PROPULSION (4) --- Flight Unit Flight Unit Flight Unit > --- UTILITY (4) ------ Small Storage Unit Improved Signal Interpreter Melee Analysis Suite > --- WEAPON (2) ------- Spear Spear > --- INVENTORY (8) ---- Flight Unit Improved Heat Sink Medium Storage Unit Weight Redist. System Trap Scanner Visual Processing Unit Improved Signal Interpreter Enhanced Autogun Peak State ------------ > --- POWER ------------ Light Nuclear Core > --- PROPULSION ------- Flight Unit Flight Unit Flight Unit Flight Unit > --- UTILITY ---------- Small Storage Unit Improved Sensor Array Improved Signal Interpreter Hacking Suite > --- WEAPON ----------- Spear Spear > --- INVENTORY -------- Light Deuterium Engine Flight Unit Medium Storage Unit Compact Matter Pod Trap Scanner Improved Signal Interpreter Melee Analysis Suite Field Laser [Rating: 27] Favorites ----------- Power Light Ion Engine Engine Light Ion Engine Power Core Light Nuclear Core Propulsion Flight Unit Wheel Wheel Flight Unit Flight Unit Utility Small Storage Unit Device Sensor Array Storage Small Storage Unit Processor Improved Signal Interpreter Hackware Hacking Suite Weapon Assault Rifle Energy Gun Beam Rifle Energy Cannon Beam Cannon Ballistic Gun Assault Rifle Piercing Weapon Spear Build | -11 -10 -10 -10 -8 ------- Run | Yrd Mat Min Sub Mat Slots Evolved 4 | . . . . 4 Power . | . . . . . Propulsion 2 | . . . . 2 Utility 2 | . . . . 2 Weapon . | . . . . . Parts Attached 50 | 7 7 3 . 33 Power 8 | 1 1 . . 6 Engine 6 | 1 1 . . 4 Core 2 | . . . . 2 Reactor . | . . . . . Propulsion 17 | 2 2 1 . 12 Treads . | . . . . . Leg . | . . . . . Wheel 2 | 2 . . . . Hover . | . . . . . Flight 15 | . 2 1 . 12 Utility 10 | 2 2 1 . 5 Device 4 | 1 1 1 . 1 Storage 2 | 1 . . . 1 Processor 3 | . 1 . . 2 Hackware 1 | . . . . 1 Protection . | . . . . . Artifact . | . . . . . Weapon 15 | 2 2 1 . 10 Energy Gun 4 | 1 . 1 . 2 Energy Cannon 1 | . 1 . . . Ballistic Gun 4 | 1 1 . . 2 Ballistic Cannon . | . . . . . Launcher . | . . . . . Special Weapon . | . . . . . Impact Weapon . | . . . . . Slashing Weapon . | . . . . . Piercing Weapon 6 | . . . . 6 Special Melee Weapon . | . . . . . Unidentified Prototypes 1 | . . . . 1 Parts Lost 11 | . . . . 11 Power 2 | . . . . 2 Propulsion 7 | . . . . 7 Utility 2 | . . . . 2 Weapon . | . . . . . Highest Loss Streak 10 | . . . . 10 To Critical Strikes . | . . . . . Average Slot Usage (%) 96 | . 100 100 100 92 Engine 10 | . 14 14 14 6 Wheel 2 | . 9 . . . Flight 28 | . 18 28 28 33 Device 10 | . 14 13 14 5 Storage 11 | . 14 14 14 9 Processor 5 | . . . . 12 Hackware 2 | . . . . 5 Energy Gun 9 | . 10 12 14 5 Energy Cannon 1 | . 3 1 . . Ballistic Gun 9 | . 14 14 14 3 Piercing Weapon 3 | . . . . 8 Naked Turns . | . . . . . Heaviest Build 16 | 15 15 14 14 16 Greatest Support 20 | 20 20 8 8 16 Greatest Overweight (x) 3 | 1 1 1 1 3 Average Overweight (x) . | . . 1 1 . Largest Inventory Capacity 8 | 8 8 8 8 8 Average Capacity 7 | 7 8 8 8 8 Most Carried 8 | 4 8 8 8 8 Average Carried 7 | 1 6 7 8 6 Final Capacity 8 | 8 8 8 8 8 Final Carried 8 | 2 8 8 8 8 Class Distribution -------------------- 37% | Scavenger-Sprinter 30% | Scavenger-Mutant 28% | Mutant Dominant Class ---------------- Mutant | -10/Materials Scavenger-Mutant | -10/Mines Scavenger-Mutant | -10/Subcaves Scavenger-Sprinter | -8/Materials Resources | -11 -10 -10 -10 -8 ----------- Run | Yrd Mat Min Sub Mat Matter Collected 906 | 223 291 79 9 304 Remotely . | . . . . . Salvage Created 1266 | 14 216 81 33 922 Parts 97 | 5 19 7 3 63 Haulers Intercepted 1 | . . . . 1 Recyclers Shooed 1 | . . . . 1 Parts Field Recycled . | . . . . . Retrieved Matter . | . . . . . Parts Self-Destructed 10 | . . . 10 . Prevented . | . . . . . Kills | -11 -10 -10 -10 -8 ------- Run | Yrd Mat Min Sub Mat Combat Hostiles Destroyed 32 | . 8 2 1 21 Melee 19 | . . . . 19 Guns 13 | . 8 2 1 2 Classes Destroyed 9 | 1 3 . 1 4 Tunneler 1 | 1 . . . . Hauler 1 | . . . . 1 Recycler 2 | . . . . 2 Operator 1 | . . . . 1 Watcher 7 | . 3 . . 4 Swarmer 19 | . 6 . . 13 Grunt 8 | . 2 2 . 4 Sentry 4 | . . . . 4 Subdweller 1 | . . . 1 . Best Kill Streak 12 | 1 3 2 1 12 Combat Bots Only 12 | . 3 2 1 12 Max Kills in Single Turn 1 | 1 1 1 1 1 Gunslinging . | . . . . . Exploded . | . . . . . Melee 1 | . . . . 1 Uniques/NPCs Destroyed . | . . . . . Combat | -11 -10 -10 -10 -8 -------- Run | Yrd Mat Min Sub Mat Hostile Shots Fired 188 | . 27 1 2 158 Missed 42 | . 5 . 1 36 Damage Taken 1443 | . 227 12 29 1175 Core 619 | . 69 . . 550 Absorbed by Shields . | . . . . . Regen/Repaired (Parts) 84 | . . . . 84 Core Remaining (%) 86 | 100 . . 72 . Volleys Fired 57 | 5 31 5 3 13 Largest 2 | 2 2 2 2 2 Hottest 86 | 70 80 76 76 86 Shots Fired 107 | 10 61 10 6 20 Gun 105 | 10 59 10 6 20 Cannon 2 | . 2 . . . Launcher . | . . . . . Special . | . . . . . Kinetic 53 | 5 31 5 3 9 Thermal 54 | 5 30 5 3 11 Explosive . | . . . . . Electromagnetic . | . . . . . Robot Hit Streak 7 | 1 6 6 7 3 Robot Miss Streak 7 | 5 7 3 1 4 Penetration Max . | . . . . . Secondary Targets 1 | . . . . 1 Max Gunslinging Chain 1 | . . . . 1 Shots Hit Robots 99 | 3 29 6 3 58 Core Hits 50 | 1 14 3 1 31 Critical Kills 1 | . . 1 . . Critical Parts Destroyed . | . . . . . Critical Strikes 7 | . 1 1 . 5 Burn 2 | . 1 . . 1 Destroy 1 | . . 1 . . Impale 4 | . . . . 4 Melee Attacks 67 | . . . . 67 Impact . | . . . . . Slashing . | . . . . . Piercing 67 | . . . . 67 Sneak Attacks 5 | . . . . 5 Combat Hostiles . | . . . . . Follow-up Attacks 3 | . . . . 3 Damage Inflicted 2453 | 37 416 94 45 1861 Guns 751 | 37 399 94 45 176 Cannons 17 | . 17 . . . Explosions . | . . . . . Melee 1685 | . . . . 1685 Ramming . | . . . . . Kinetic 386 | 37 223 36 . 90 Thermal 382 | . 193 58 45 86 Explosive . | . . . . . Electromagnetic . | . . . . . Impact . | . . . . . Slashing . | . . . . . Piercing 1685 | . . . . 1685 Highest Corruption . | . . . . . Average Corruption . | . . . . . Corruption Purged . | . . . . . Corruption Blocked . | . . . . . Overload Shots . | . . . . . Overflow Damage 144 | . . . . 144 Projectiles . | . . . . . Explosions . | . . . . . Melee 144 | . . . . 144 Knockbacks . | . . . . . Impact . | . . . . . Kinetic . | . . . . . Secondary . | . . . . . Self-Inflicted Damage . | . . . . . Shots . | . . . . . Rammed . | . . . . . Targets Rammed . | . . . . . Kicked . | . . . . . Crushed . | . . . . . Highest Temperature 99 | 38 99 63 . 80 Average Temperature 29 | 14 27 31 . 37 Received Heat Transfer 342 | . 84 6 9 243 Siege Activations . | . . . . . Robots Corrupted . | . . . . . Combat Hostiles . | . . . . . Parts Fried . | . . . . . Impact Corruptions . | . . . . . Robots Melted . | . . . . . Combat Hostiles . | . . . . . Parts Melted 1 | . 1 . . . Heat Transferred 1147 | . 629 148 111 259 Parts Sabotaged . | . . . . . Parts Stolen . | . . . . . Parts Stripped . | . . . . . Power Chain Reactions . | . . . . . Alert | -11 -10 -10 -10 -8 ------- Run | Yrd Mat Min Sub Mat Peak Influence 349 | 5 273 57 . 349 Initial 39 | . 3 39 . 13 Average 110 | . 118 54 . 153 Maximum Alert Level 1 | . 1 . . 1 Low Security (%) 86 | 100 91 100 . 73 Level 1 13 | . 8 . . 26 Level 2 . | . . . . . Level 3 . | . . . . . Level 4 . | . . . . . Level 5 . | . . . . . High Security . | . . . . . Max Security . | . . . . . Squads Dispatched 5 | . 1 . . 4 Investigation 2 | . 1 . . 1 Extermination . | . . . . . Reinforcement . | . . . . . Assault . | . . . . . Garrison 3 | . . . . 3 Intercept . | . . . . . Searches Triggered . | . . . . . Construction Impeded . | . . . . . Haulers Reinforced . | . . . . . Active Scanning Responses . | . . . . . Cargo Convoy Interrupts . | . . . . . Stealth | -11 -10 -10 -10 -8 --------- Run | Yrd Mat Min Sub Mat Distress Signals 4 | . 1 . . 3 Communications Jammed . | . . . . . Distress Signals . | . . . . . Times Spotted 48 | . 14 5 1 28 Peak Tracking Total 8 | . 3 3 1 8 Tactical Retreats 1 | . 1 . . . Traps | -11 -10 -10 -10 -8 ------- Run | Yrd Mat Min Sub Mat Traps Triggered . | . . . . . Indirectly . | . . . . . Trap Hack Attempts . | . . . . . Triggered . | . . . . . Disarmed . | . . . . . Reprogrammed . | . . . . . Reused . | . . . . . Traps Extracted . | . . . . . Installed . | . . . . . Triggered . | . . . . . Machines | -11 -10 -10 -10 -8 ---------- Run | Yrd Mat Min Sub Mat Machines Disabled . | . . . . . Max in Single Turn . | . . . . . Machines Repaired . | . . . . . Machines Dismantled . | . . . . . Machines Sabotaged . | . . . . . Overloaded Fab Kills . | . . . . . Hacking | -11 -10 -10 -10 -8 --------- Run | Yrd Mat Min Sub Mat Machines Accessed 13 | . 5 . . 8 Terminals 9 | . 5 . . 4 Fabricators . | . . . . . Repair Stations 2 | . . . . 2 Recycling Units 1 | . . . . 1 Scanalyzers 1 | . . . . 1 Garrison Access . | . . . . . Total Hacks 33 | . 11 . . 22 Successful 19 | . 4 . . 15 Failed 14 | . 7 . . 7 Catastrophic 2 | . . . . 2 Database Lockouts . | . . . . . Manual 2 | . 2 . . . Terminals 22 | . 11 . . 11 Fabricators . | . . . . . Repair Stations 7 | . . . . 7 Recycling Units 2 | . . . . 2 Scanalyzers 2 | . . . . 2 Garrison Access . | . . . . . Terminal Hacks 9 | . 3 . . 6 Prototype ID Bank 1 | . 1 . . . Branch Access Points 1 | . . . . 1 Emergency Access Points 1 | . . . . 1 Alert Level 1 | . . . . 1 Locate Traps 3 | . 2 . . 1 Hauler Manifests 1 | . . . . 1 Zone Layout 1 | . . . . 1 Fabricator Hacks . | . . . . . Repair Station Hacks 6 | . . . . 6 Scan Component 3 | . . . . 3 Repair 3 | . . . . 3 Recycling Unit Hacks 1 | . . . . 1 Retrieve Components 1 | . . . . 1 Scanalyzer 2 | . . . . 2 Insert Component 1 | . . . . 1 Analyze 1 | . . . . 1 Garrison Access Hacks . | . . . . . Unauthorized Hacks 1 | . 1 . . . Terminals 1 | . 1 . . . Botnet 1 | . 1 . . . Fabricators . | . . . . . Repair Stations . | . . . . . Recycling Units . | . . . . . Scanalyzers . | . . . . . Garrison Access . | . . . . . Data Cores Recovered . | . . . . . Used . | . . . . . Hacking Detections 12 | . 4 . . 8 Full Trace Events 3 | . 1 . . 2 Feedback Events . | . . . . . Feedback Blocked . | . . . . . Robot Schematics Acquired . | . . . . . Robots Built . | . . . . . Authchips . | . . . . . Time . | . . . . . Total Robot Build Rating . | . . . . . Part Schematics Acquired 1 | . . . . 1 Parts Built . | . . . . . Authchips . | . . . . . Time . | . . . . . Total Part Build Rating . | . . . . . Parts Repaired 3 | . . . . 3 Time 107 | . . . . 107 Parts Recycled . | . . . . . Recycled Matter . | . . . . . Retrieved Matter . | . . . . . Retrieved Components 10 | . . . . 10 Parts Scanalyzed 1 | . . . . 1 Part Schematics Acquired 1 | . . . . 1 Parts Damaged . | . . . . . Bothacking | -11 -10 -10 -10 -8 ------------ Run | Yrd Mat Min Sub Mat Used RIF Installer . | . . . . . Robots Hacked . | . . . . . Non-combat . | . . . . . Combat . | . . . . . Robot Hacks Applied . | . . . . . Relay Couplers Released . | . . . . . Fabnet Peak Effective % . | . . . . . Robots Rewired . | . . . . . Allies Hacked . | . . . . . Hacks Repelled . | . . . . . Allies | -11 -10 -10 -10 -8 -------- Run | Yrd Mat Min Sub Mat Total Allies 3 | . . 3 . . Largest Group 2 | . . 2 2 2 Highest-Rated Group 42 | . . 42 42 42 Highest-Rated Ally 31 | . . 31 31 31 Total Orders . | . . . . . Ally Attacks 31 | . . 9 4 18 Total Damage 504 | . . 168 63 273 Kills 5 | . . 1 . 4 Allies Corrupted . | . . . . . Allies Melted . | . . . . . Intel | -11 -10 -10 -10 -8 ------- Run | Yrd Mat Min Sub Mat Robot Analysis Total . | . . . . . Derelict Logs Recovered 3 | . . 2 1 . Drone Launches . | . . . . . Drone Recoveries . | . . . . . Exploration | -11 -10 -10 -10 -8 ------------- Run | Yrd Mat Min Sub Mat Turns Passed 2667 | 90 621 743 103 1110 Spaces Moved 2227 | 75 419 600 81 1052 Core 20 | 8 . . . 12 Treads . | . . . . . Legs . | . . . . . Wheels 227 | 67 160 . . . Hover . | . . . . . Flight 1980 | . 259 600 81 1040 Fastest Speed 31 | 50 80 117 117 31 Average Speed 73 | 79 102 117 117 32 Slowest Speed 200 | 95 117 117 117 200 Overloaded Moves . | . . . . . Propulsion Burnouts . | . . . . . Robots Hopped 4 | . . . . 4 Cave-ins Triggered . | . . . . . Exploration Rate (%) 44 | 4 57 99 8 53 Regions Visited 4 Branch Regions 2 Pre-discovered Areas 2 | . . 1 1 . Known Exits Taken 1 | . 1 . . . Unknown Exits Taken 3 | 1 . 1 1 . Scrap Searched 1 | . . 1 . . Spaces Dug . | . . . . . Terrain Destroyed . | . . . . . Melee . | . . . . . Projectile . | . . . . . AOE . | . . . . . Terrain Rammed . | . . . . . Walls Destroyed . | . . . . . Machines Disabled . | . . . . . Actions | -11 -10 -10 -10 -8 --------- Run | Yrd Mat Min Sub Mat Total 3055 | 95 548 633 83 1696 Wait 578 | . 72 19 . 487 Move 2215 | 74 418 599 80 1044 Hop 4 | . . . . 4 Pick Up 61 | 9 13 4 . 35 Fast Attach . | . . . . . Attach 24 | 7 . . . 17 Detach . | . . . . . Swap 26 | . 7 3 . 16 Drop 29 | . 7 3 . 19 Fire 57 | 5 31 5 3 13 Melee 61 | . . . . 61 Ram . | . . . . . Kick . | . . . . . Crush . | . . . . . Escape Stasis . | . . . . . Rewire . | . . . . . Trap . | . . . . . Miscellaneous . | . . . . . Route ------- -11/Scrapyard -10/Materials -10/Mines (discovered 3 exits: [*Mat x2] / [*Sub]) -10/Subcaves -8/Materials (discovered 2 exits: *Fac x2) History --------- Turn | Location | Event 18 | -11/Scrapyard | Discovered new exit (range 15) 91 | -11/Scrapyard | Entered Materials 332 | -10/Materials | Build established: Mutant 704 | -10/Materials | Discovered new exit (range 7) 711 | -10/Materials | Identified exit to Mines 712 | -10/Materials | Entered Mines 765 | -10/Mines | Joined a pair of Derelicts in attacking an 0b10 outpost 872 | -10/Mines | Discovered new exit (range 4) 912 | -10/Mines | Discovered new exit (range 6) 970 | -10/Mines | Learned location of Mines (-9) 1069 | -10/Mines | Build established: Scavenger-Mutant 1134 | -10/Mines | Escorted by a lone wolf Derelict 1162 | -10/Mines | Learned location of 1 exit from Materials 1428 | -10/Mines | Discovered new exit (range 6) 1455 | -10/Mines | Entered Subcaves 1455 | -10/Subcaves | Accompanied by 2 allies 1463 | -10/Subcaves | Learned location of Storage (-9) 1482 | -10/Subcaves | Discovered new exit (range 6) 1558 | -10/Subcaves | Entered Materials 1558 | -8/Materials | Accompanied by 2 allies 1558 | -8/Materials | Evolved 4 slots: Propulsion x2, Utility x2 1559 | -8/Materials | Identified exit to Factory 1611 | -8/Materials | Repaired Lgt. Nuclear Core? 1860 | -8/Materials | Build established: Scavenger-Sprinter 2216 | -8/Materials | Garrison activated, responded to threat 2260 | -8/Materials | Core integrity fell below 50% 2307 | -8/Materials | Lost 10 parts (2p6n2u) 2315 | -8/Materials | Destroyed 12 combat bots 2363 | -8/Materials | Repaired Spear 2409 | -8/Materials | Repaired Spear 2430 | -8/Materials | Discovered exit to Factory (range 6) 2531 | -8/Materials | Core integrity fell below 20% 2668 | -8/Materials | Destroyed by G-47 Trooper with Particle Gun Last Messages --------------- Dropped Sml. Storage Unit. Acquired 10 matter. Sneak attack on R-06 Scavenger. Destroyed Com. Wheel. R-06 Scavenger destroyed. Acquired Flight Unit. Dropped Flight Unit. Acquired Flight Unit. Acquired 10 matter. Connecting with Terminal... Sneak attack on A-02 Transporter. A-02 Transporter destroyed. Identified Enh. Autogun. Dropped Com. Matter Pod. Acquired Weight Redist. System. K-01 Serf collects debris. G-47 Trooper destroyed. G-50 Soldier destroyed. Spear follow-up attack on G-47 Trooper. Flight Unit destroyed. Map ----- +----------------------------------------------------+ | ??????????????????????????????????????????????# #? | | ????????????????????????????????????########??# #? | | ????????????????????????????????????# ####+## | | ????????????????????????????????????#]]] # | | ????????????????????????????????#####]] # " | | ???????????????????????########## #]] # "" " | | ???????????????????????# # < # # S"" " | | ???????????????????????# # # * # "" | | ???????????????????????# # ###+########## | | ???????????????????????# # %! | | ???????????????????????# ] + ! | | ???????????????????????# # !% | | ???????????????????????# # =########### | | ???????????????????????# # # # | | ???????????????????????# # # # | | ???????????????????????########## + # | | ????????????????????????????????# =# # | | ?????????????????????############ [!########### | | ?????????????????????# """ =## !%##????????# | | ?????????????????????# """"" # ![![########## | | ?????????????????????# """"" # = # # | | ?????????????????????# """"" + + * # | | ?????????????????????# """ ! # # ] / # | | ?????????????????????# # # ]*/ # | | ?????????????????????# = #######! */ + | | ?????????????????????# @%% #?????# # | | ??????????????????########g#####?????# # | | ??????????? !#?????????# # | | ??????????????????##########?????????# # | | ?????????????????????????????????????####+##+## | | ????????????????????????????????######### | | ????????????????????????????????# #= | | ????????????????????????????????# +* | | ????????????????????????????????# #%#### | | ???????????????????????########?#########+#### | | ???????????????????????# #????????# ##!!!! | | ???????????????????????# ########## ##!!!! | | ???????????????????????# # + ###### | | ???????????????????????# # # #????? | | ???????????????????????# # # #????? | | ???????????????????????# # # #????? | | ???????????????????????# = + + #????? | | ???????????????????????# # # #????? | | ???????????????????????# ###### ########### | | ???????????????????????# #????# #???# [! | | ???????????????????????# #????# #???# !=[" | | ???????????????????????# #????# #???# !==[" | | ???????????????????????# #????# #???# "Y"=" | | ???????????????????????########????# #???# """ = | | ???????????????????????????######### ##??######+ | +----------------------------------------------------+ Best States ------------- Heat Dissipation 31 Energy Generation 14 Energy Capacity 250 Matter Stores 300 Matter Capacity 300 Sight Range 16 Robot Scan Range 15 Terrain Scan Density 10 Evasion (%) 63 Melee Accuracy 5 Offensive Hacking 10 Item Schematics ----------------- Lgt. Deuterium Engine | -8/Materials | Scanalyzed Robot Schematics ------------------ None Fabricated ------------ Nothing Alien Tech Used ----------------- None Achievements -------------- Troublemaker Challenges ------------ None Game ------ Seed DiametricAdvancedDriver Manual? 0 Play Time 00:28:53 Cumulative 5.1 hours Start 2024.03.09 @ 23:40:10 End 2024.03.10 @ 00:27:16 Sessions 1 Manual Loads 0 Difficulty Rogue Special Mode None Game No. 6 Rogue 5 Adventurer 1 Explorer 0 Win Type - Total 0 Types 0/0/0/0/0/0/0/0/0 Lore% 6 Gallery% 15 Achievement% 15 Wizard Run 0 Options --------- Layout 2 ASCII 0 Keyboard 0 Movement Mouse Keybinds 0 Fullscreen 2 Font 32/SmallcapsGlow Map View 50x44 Zoom Use 0% Tactical HUD 0 Map Filters NONE Filters NONE Steam 1 RUN: c8afd72e-1db4-477b-b023-d7e64a60edda